[Event "Open Nuevo Centro. Jornada 1"]
[Site "Chess.com"]
[Date "2020.06.19"]
[Round "5"]
[White "Cebolla Ruiz, David"]
[Black "Gutierrez Marco, Dario"]
[Result "0-1"]
[WhiteElo "1715"]
[BlackElo "1940"]
[TimeControl "180+2"]
[EndTime "11:28:57 PDT"]
[Termination "Victoria de rususs por tiempo"]

1. e4 {[%clk 0:03:01.9]} 1... c5 {[%clk 0:02:48.7]} 2. Nf3 {[%clk 0:03:00.1]}
2... e6 {[%clk 0:02:48.2]} 3. d4 {[%clk 0:01:54.7]} 3... cxd4 {[%clk 0:02:50.1]}
4. Nxd4 {[%clk 0:01:55.4]} 4... Nc6 {[%clk 0:02:51.3]} 5. Be3 {[%clk 0:01:55]}
5... Nf6 {[%clk 0:02:51.5]} 6. f3 {[%clk 0:01:53.2]} 6... d5 {[%clk 0:02:46.2]}
7. Bd3 {[%clk 0:01:50.5]} 7... dxe4 {[%clk 0:02:41.7]} 8. Bxe4 {[%clk
0:01:48.4]} 8... Nxe4 {[%clk 0:02:42]} 9. fxe4 {[%clk 0:01:46.4]} 9... Nxd4
{[%clk 0:02:19]} 10. Qxd4 {[%clk 0:01:43.7]} 10... Qxd4 {[%clk 0:02:16.8]} 11.
Bxd4 {[%clk 0:01:43.8]} 11... f6 {[%clk 0:02:17.7]} 12. O-O {[%clk 0:01:42.9]}
12... e5 {[%clk 0:02:18.3]} 13. Be3 {[%clk 0:01:39.9]} 13... Be6 {[%clk
0:02:13.6]} 14. Nc3 {[%clk 0:01:38.7]} 14... Be7 {[%clk 0:02:12.9]} 15. Nd5
{[%clk 0:01:37.6]} 15... Kf7 {[%clk 0:02:02.8]} 16. Nxe7 {[%clk 0:01:29.7]}
16... Kxe7 {[%clk 0:02:03.2]} 17. Bc5+ {[%clk 0:01:28.4]} 17... Kf7 {[%clk
0:02:01.1]} 18. Rad1 {[%clk 0:01:28.6]} 18... b6 {[%clk 0:01:59.9]} 19. Be3
{[%clk 0:01:24.7]} 19... Rad8 {[%clk 0:01:58.7]} 20. a3 {[%clk 0:01:22.1]} 20...
Bg4 {[%clk 0:01:53]} 21. Rd5 {[%clk 0:01:15.2]} 21... Rxd5 {[%clk 0:01:28.6]}
22. exd5 {[%clk 0:01:15.6]} 22... Rd8 {[%clk 0:01:28.8]} 23. c4 {[%clk
0:00:45.9]} 23... Be2 {[%clk 0:01:19]} 24. Rc1 {[%clk 0:00:45.8]} 24... f5
{[%clk 0:01:07.3]} 25. Kf2 {[%clk 0:00:37.1]} 25... Bd3 {[%clk 0:01:01.4]} 26.
Bg5 {[%clk 0:00:28.9]} 26... Rd7 {[%clk 0:00:43.5]} 27. Ke3 {[%clk 0:00:22.5]}
27... Be4 {[%clk 0:00:30.7]} 28. g3 {[%clk 0:00:18.3]} 28... h6 {[%clk
0:00:31.5]} 29. Bf4 {[%clk 0:00:11.6]} 29... exf4+ {[%clk 0:00:29.6]} 30. Kxf4
{[%clk 0:00:12.9]} 30... Kf6 {[%clk 0:00:25.6]} 31. g4 {[%clk 0:00:11.3]} 31...
g5+ {[%clk 0:00:21.9]} 32. Kg3 {[%clk 0:00:11.2]} 32... f4+ {[%clk 0:00:20.8]}
33. Kf2 {[%clk 0:00:11.8]} 33... Ke5 {[%clk 0:00:20.2]} 34. Re1 {[%clk
0:00:05.2]} 34... Rc7 {[%clk 0:00:20.5]} 35. b3 {[%clk 0:00:05.8]} 35... Rd7
{[%clk 0:00:20.5]} 36. h4 {[%clk 0:00:05.1]} 36... a5 {[%clk 0:00:20.4]} 37. b4
{[%clk 0:00:05.6]} 37... axb4 {[%clk 0:00:21]} 38. axb4 {[%clk 0:00:07]} 38...
Kd4 {[%clk 0:00:19.9]} 39. c5 {[%clk 0:00:07]} 39... bxc5 {[%clk 0:00:20.8]} 40.
bxc5 {[%clk 0:00:08.2]} 40... Bxd5 {[%clk 0:00:20.8]} 41. Rd1+ {[%clk
0:00:08.8]} 41... Kxc5 {[%clk 0:00:21.8]} 42. hxg5 {[%clk 0:00:09.2]} 42... hxg5
{[%clk 0:00:22.5]} 43. Re1 {[%clk 0:00:10]} 43... Kd6 {[%clk 0:00:22.5]} 44. Rd1
{[%clk 0:00:09.9]} 44... Re7 {[%clk 0:00:20.1]} 45. Rd3 {[%clk 0:00:06.3]} 45...
Re3 {[%clk 0:00:18.6]} 46. Rd1 {[%clk 0:00:06.8]} 46... Rg3 {[%clk 0:00:16.7]}
47. Rd4 {[%clk 0:00:04.9]} 47... Rxg4 {[%clk 0:00:16.8]} 48. Rd1 {[%clk
0:00:05.3]} 48... Rg2+ {[%clk 0:00:17.2]} 49. Kf1 {[%clk 0:00:06]} 49... Rh2
{[%clk 0:00:16.7]} 50. Kg1 {[%clk 0:00:06.8]} 50... Rg2+ {[%clk 0:00:16.5]} 51.
Kf1 {[%clk 0:00:06.2]} 51... f3 {[%clk 0:00:16.9]} 52. Ke1 {[%clk 0:00:05.5]}
52... f2+ {[%clk 0:00:16.8]} 53. Kf1 {[%clk 0:00:05.1]} 53... Rg1+ {[%clk
0:00:17.8]} 54. Ke2 {[%clk 0:00:05.1]} 54... Rxd1 {[%clk 0:00:18.4]} 55. Ke3
{[%clk 0:00:04.8]} 55... Rd3+ {[%clk 0:00:15.3]} 56. Ke2 {[%clk 0:00:02.6]}
56... Ra3 {[%clk 0:00:13.7]} 0

[Event "Open Nuevo Centro. Jornada 1"]
[Site "Chess.com"]
[Date "2020.06.19"]
[Round "5"]
[White "Clement G�mez, Jos� Antonio"]
[Black "Garcia Trobat, Francisco"]
[Result "1-0"]
[WhiteElo "2494"]
[BlackElo "2221"]
[TimeControl "180+2"]
[EndTime "11:29:02 PDT"]
[Termination "Victoria de P4AD por jaque mate"]

1. c4 {[%clk 0:03:01.9]} 1... c5 {[%clk 0:02:58.5]} 2. Nf3 {[%clk 0:03:01.9]}
2... Nc6 {[%clk 0:02:59.3]} 3. g3 {[%clk 0:03:03.8]} 3... g6 {[%clk 0:02:59.8]}
4. Nc3 {[%clk 0:03:05.1]} 4... Bg7 {[%clk 0:03:00.9]} 5. Bg2 {[%clk 0:03:07]}
5... d6 {[%clk 0:03:02.2]} 6. O-O {[%clk 0:03:08.4]} 6... h5 {[%clk 0:02:56.8]}
7. h4 {[%clk 0:03:08.8]} 7... Nh6 {[%clk 0:02:54.7]} 8. d3 {[%clk 0:03:10.2]}
8... Bf5 {[%clk 0:02:44.9]} 9. Rb1 {[%clk 0:03:03.4]} 9... Qd7 {[%clk
0:02:43.6]} 10. Re1 {[%clk 0:03:04]} 10... Bh3 {[%clk 0:02:43.6]} 11. Bh1 {[%clk
0:03:04.4]} 11... Nf5 {[%clk 0:02:42.2]} 12. a3 {[%clk 0:03:00.9]} 12... Ncd4
{[%clk 0:02:35.9]} 13. Ng5 {[%clk 0:02:45.4]} 13... Nxh4 {[%clk 0:02:24.1]} 14.
Nxh3 {[%clk 0:02:20]} 14... Qxh3 {[%clk 0:02:22.4]} 15. Nd5 {[%clk 0:01:59.3]}
15... Be5 {[%clk 0:02:11]} 16. Bf4 {[%clk 0:01:27.1]} 16... Nhf5 {[%clk
0:02:04.3]} 17. Bg2 {[%clk 0:01:15.8]} 17... Qg4 {[%clk 0:01:49.9]} 18. f3
{[%clk 0:01:16]} 18... Bxf4 {[%clk 0:01:39.7]} 19. fxg4 {[%clk 0:01:14.6]} 19...
Ne3 {[%clk 0:01:33.9]} 20. Qa4+ {[%clk 0:01:12.2]} 20... b5 {[%clk 0:01:34.7]}
21. cxb5 {[%clk 0:01:10.4]} 21... Nxd5 {[%clk 0:01:18.7]} 22. gxf4 {[%clk
0:01:08.1]} 22... Nb6 {[%clk 0:01:10.6]} 23. Bxa8 {[%clk 0:01:10]} 23... Nxa4
{[%clk 0:01:11.1]} 24. gxh5 {[%clk 0:00:59.2]} 24... Rxh5 {[%clk 0:01:10.2]} 25.
Kg2 {[%clk 0:00:59.9]} 25... Nb6 {[%clk 0:00:53.7]} 26. Bf3 {[%clk 0:00:57.6]}
26... Rh4 {[%clk 0:00:46.8]} 27. e3 {[%clk 0:00:52.7]} 27... Nxf3 {[%clk
0:00:44.5]} 28. Kxf3 {[%clk 0:00:54.6]} 28... Rh2 {[%clk 0:00:41.6]} 29. Re2
{[%clk 0:00:51.8]} 29... Rh3+ {[%clk 0:00:40.4]} 30. Kg2 {[%clk 0:00:51.8]}
30... Rh5 {[%clk 0:00:37.8]} 31. e4 {[%clk 0:00:46]} 31... c4 {[%clk 0:00:35.2]}
32. d4 {[%clk 0:00:43.9]} 32... Rxb5 {[%clk 0:00:34.6]} 33. Rc2 {[%clk
0:00:32.8]} 33... d5 {[%clk 0:00:33.9]} 34. e5 {[%clk 0:00:31.4]} 34... Kd7
{[%clk 0:00:32.6]} 35. Kf3 {[%clk 0:00:29.3]} 35... Ke6 {[%clk 0:00:33.9]} 36.
Kg4 {[%clk 0:00:24.1]} 36... Na4 {[%clk 0:00:34.9]} 37. Rh1 {[%clk 0:00:20.6]}
37... Rb3 {[%clk 0:00:35.7]} 38. Rh6 {[%clk 0:00:20.7]} 38... Rxb2 {[%clk
0:00:22.7]} 39. f5+ {[%clk 0:00:22.6]} 39... Kd7 {[%clk 0:00:23.5]} 40. Rxb2
{[%clk 0:00:22.2]} 40... gxf5+ {[%clk 0:00:23.5]} 41. Kxf5 {[%clk 0:00:22.3]}
41... Nxb2 {[%clk 0:00:25]} 42. Rh2 {[%clk 0:00:20.9]} 42... Nd3 {[%clk
0:00:25.4]} 43. Rc2 {[%clk 0:00:21.5]} 43... Ne1 {[%clk 0:00:25.5]} 44. Rc3
{[%clk 0:00:20.6]} 44... a5 {[%clk 0:00:24.8]} 45. Kf4 {[%clk 0:00:21.2]} 45...
Ng2+ {[%clk 0:00:24.3]} 46. Kf3 {[%clk 0:00:20.7]} 46... Nh4+ {[%clk 0:00:25.4]}
47. Kf4 {[%clk 0:00:19.1]} 47... Ng6+ {[%clk 0:00:26.5]} 48. Ke3 {[%clk
0:00:18.9]} 48... Nf8 {[%clk 0:00:27.9]} 49. Rc1 {[%clk 0:00:17.6]} 49... Kc6
{[%clk 0:00:28.8]} 50. Rf1 {[%clk 0:00:17.8]} 50... f6 {[%clk 0:00:26.3]} 51.
exf6 {[%clk 0:00:19.7]} 51... exf6 {[%clk 0:00:27.1]} 52. Rxf6+ {[%clk
0:00:21.6]} 52... Kb5 {[%clk 0:00:27.4]} 53. Rxf8 {[%clk 0:00:22.6]} 53... Ka4
{[%clk 0:00:28.9]} 54. Rb8 {[%clk 0:00:23.7]} 54... Kxa3 {[%clk 0:00:28.8]} 55.
Kd2 {[%clk 0:00:25.6]} 55... Ka2 {[%clk 0:00:27.3]} 56. Ra8 {[%clk 0:00:23]}
56... Kb2 {[%clk 0:00:23.9]} 57. Rb8+ {[%clk 0:00:21.6]} 57... Ka3 {[%clk
0:00:21.9]} 58. Kc2 {[%clk 0:00:23.5]} 58... a4 {[%clk 0:00:22.9]} 59. Rb5
{[%clk 0:00:24]} 59... Ka2 {[%clk 0:00:23.3]} 60. Rxd5 {[%clk 0:00:25.9]} 60...
a3 {[%clk 0:00:24.5]} 61. Ra5 {[%clk 0:00:27.2]} 61... c3 {[%clk 0:00:24.9]} 62.
d5 {[%clk 0:00:29.1]} 62... Ka1 {[%clk 0:00:24]} 63. Rxa3# {[%clk 0:00:31]} 1

[Event "Open Nuevo Centro. Jornada 1"]
[Site "Chess.com"]
[Date "2020.06.19"]
[Round "5"]
[White "Ursariu, Nikolas Victor"]
[Black "Donate Peris, Jose Manuel"]
[Result "1/2-1/2"]
[WhiteElo "1374"]
[BlackElo "1585"]
[TimeControl "180+2"]
[EndTime "11:29:33 PDT"]
[Termination "Tablas por repetición de movimientos"]

1. e4 {[%clk 0:03:01.9]} 1... e5 {[%clk 0:03:00.7]} 2. Nf3 {[%clk 0:03:02.3]}
2... Nc6 {[%clk 0:03:01.4]} 3. Nc3 {[%clk 0:03:02]} 3... Nf6 {[%clk 0:03:00.3]}
4. d4 {[%clk 0:03:02.4]} 4... exd4 {[%clk 0:03:00.2]} 5. Nxd4 {[%clk 0:03:03.3]}
5... Bb4 {[%clk 0:02:54.4]} 6. Nxc6 {[%clk 0:03:03.9]} 6... bxc6 {[%clk
0:02:53.1]} 7. Bd3 {[%clk 0:03:05.8]} 7... O-O {[%clk 0:02:49.9]} 8. Bd2 {[%clk
0:03:06.3]} 8... d6 {[%clk 0:02:44.7]} 9. O-O {[%clk 0:03:06.4]} 9... Re8 {[%clk
0:02:42.6]} 10. Re1 {[%clk 0:03:03]} 10... a5 {[%clk 0:02:41]} 11. a3 {[%clk
0:03:02.8]} 11... Bc5 {[%clk 0:02:40.8]} 12. Bf4 {[%clk 0:02:56.3]} 12... Ba6
{[%clk 0:02:37.1]} 13. Bxa6 {[%clk 0:02:53.5]} 13... Rxa6 {[%clk 0:02:36.6]} 14.
e5 {[%clk 0:02:42.9]} 14... dxe5 {[%clk 0:02:32.7]} 15. Qxd8 {[%clk 0:02:42.3]}
15... Rxd8 {[%clk 0:02:31]} 16. Bxe5 {[%clk 0:02:40.5]} 16... Ng4 {[%clk
0:02:28.7]} 17. Bg3 {[%clk 0:02:33.4]} 17... h6 {[%clk 0:02:17.2]} 18. h3 {[%clk
0:02:32]} 18... Nf6 {[%clk 0:02:12.9]} 19. Bxc7 {[%clk 0:02:30.1]} 19... Rd2
{[%clk 0:02:08.6]} 20. Bf4 {[%clk 0:02:09.7]} 20... Rxf2 {[%clk 0:02:01.2]} 21.
Bc1 {[%clk 0:01:51.9]} 21... Rxc2+ {[%clk 0:01:52.4]} 22. Kh1 {[%clk 0:01:48]}
22... Ra8 {[%clk 0:01:46.8]} 23. Na4 {[%clk 0:01:39.9]} 23... Bd4 {[%clk
0:01:38.7]} 24. Rb1 {[%clk 0:01:33.8]} 24... Rb8 {[%clk 0:01:36]} 25. Rd1 {[%clk
0:01:27.7]} 25... c5 {[%clk 0:01:35.4]} 26. Re1 {[%clk 0:01:09.1]} 26... Nd5
{[%clk 0:01:30.6]} 27. Rd1 {[%clk 0:00:53.5]} 27... Nf4 {[%clk 0:01:27.7]} 28.
Bxf4 {[%clk 0:00:44.2]} 28... Bxb2 {[%clk 0:01:21.6]} 29. Nxb2 {[%clk
0:00:43.1]} 29... Rbxb2 {[%clk 0:01:19.1]} 30. Rxb2 {[%clk 0:00:42.8]} 30...
Rxb2 {[%clk 0:01:19.3]} 31. Bd6 {[%clk 0:00:39.5]} 31... Rb5 {[%clk 0:01:19.2]}
32. a4 {[%clk 0:00:38.5]} 32... Rb4 {[%clk 0:01:18.2]} 33. Bxc5 {[%clk
0:00:39.1]} 33... Rxa4 {[%clk 0:01:18.9]} 34. Rd8+ {[%clk 0:00:37.9]} 34... Kh7
{[%clk 0:01:18.4]} 35. Ra8 {[%clk 0:00:37.8]} 35... Ra1+ {[%clk 0:01:18.5]} 36.
Kh2 {[%clk 0:00:37.1]} 36... a4 {[%clk 0:01:19.3]} 37. Ra7 {[%clk 0:00:33.9]}
37... Kg6 {[%clk 0:01:18.2]} 38. Ra6+ {[%clk 0:00:33.5]} 38... f6 {[%clk
0:01:18.9]} 39. Ra5 {[%clk 0:00:32.1]} 39... Ra2 {[%clk 0:01:17.2]} 40. Ra6
{[%clk 0:00:31.9]} 40... Rc2 {[%clk 0:01:16.5]} 41. Be3 {[%clk 0:00:28.6]} 41...
Rc3 {[%clk 0:01:13]} 42. Bg1 {[%clk 0:00:28.8]} 42... a3 {[%clk 0:01:11.8]} 43.
Bd4 {[%clk 0:00:27.5]} 43... Rb3 {[%clk 0:01:10.6]} 44. Bc5 {[%clk 0:00:27.5]}
44... Rc3 {[%clk 0:01:06.4]} 45. Bxa3 {[%clk 0:00:26.6]} 45... Rc2 {[%clk
0:01:05.2]} 46. Bd6 {[%clk 0:00:21.3]} 46... f5 {[%clk 0:01:00.6]} 47. Bg3+
{[%clk 0:00:21.7]} 47... Kh5 {[%clk 0:00:56.4]} 48. Ra5 {[%clk 0:00:21.3]} 48...
g6 {[%clk 0:00:51.8]} 49. Rd5 {[%clk 0:00:21.5]} 49... Ra2 {[%clk 0:00:46.5]}
50. Be1 {[%clk 0:00:19.2]} 50... Rc2 {[%clk 0:00:44.7]} 51. Bg3 {[%clk
0:00:19.1]} 51... Ra2 {[%clk 0:00:43.7]} 52. Be1 {[%clk 0:00:19.7]} 52... Kg5
{[%clk 0:00:35.7]} 53. Bg3 {[%clk 0:00:14.9]} 53... Kf6 {[%clk 0:00:35.2]} 54.
Rd6+ {[%clk 0:00:15.4]} 54... Kg5 {[%clk 0:00:34.5]} 55. Rd5 {[%clk 0:00:15]}
55... h5 {[%clk 0:00:31.2]} 56. Rc5 {[%clk 0:00:14.3]} 56... Ra6 {[%clk
0:00:26.2]} 57. Be1 {[%clk 0:00:14]} 57... Ra2 {[%clk 0:00:25.8]} 58. Rd5 {[%clk
0:00:10.7]} 58... Re2 {[%clk 0:00:26.1]} 59. Bc3 {[%clk 0:00:10.1]} 59... Ra2
{[%clk 0:00:25.1]} 60. Bd2+ {[%clk 0:00:08.3]} 60... Kf6 {[%clk 0:00:25.1]} 61.
Rd7 {[%clk 0:00:09.5]} 61... Ke6 {[%clk 0:00:25.4]} 62. Rd3 {[%clk 0:00:09.3]}
62... Kf6 {[%clk 0:00:24.7]} 63. Bc3+ {[%clk 0:00:09.1]} 63... Kg5 {[%clk
0:00:25.5]} 64. Rg3+ {[%clk 0:00:09.5]} 64... Kh6 {[%clk 0:00:25.5]} 65. Rd3
{[%clk 0:00:08.1]} 65... Kg5 {[%clk 0:00:24]} 66. Bd2+ {[%clk 0:00:08.2]} 66...
Kf6 {[%clk 0:00:24.1]} 67. Bc3+ {[%clk 0:00:08.9]} 67... Kg5 {[%clk 0:00:24.6]}
1/2-1

[Event "Open Nuevo Centro. Jornada 1"]
[Site "Chess.com"]
[Date "2020.06.19"]
[Round "5"]
[White "Miranda Calvo, Max Rodrigo"]
[Black "Ferrero Sanchis, Enrique"]
[Result "1-0"]
[WhiteElo "1202"]
[BlackElo "1462"]
[TimeControl "180+2"]
[EndTime "11:29:33 PDT"]
[Termination "Victoria de bas-max-miranda por tiempo"]

1. e4 {[%clk 0:03:01.9]} 1... d6 {[%clk 0:03:00.4]} 2. d4 {[%clk 0:03:01.5]}
2... g6 {[%clk 0:03:01]} 3. Nf3 {[%clk 0:02:56.1]} 3... Bg7 {[%clk 0:03:01.3]}
4. Bf4 {[%clk 0:02:51.8]} 4... Bg4 {[%clk 0:03:01.2]} 5. Nbd2 {[%clk 0:02:51.5]}
5... Nd7 {[%clk 0:03:01.1]} 6. h3 {[%clk 0:02:51.2]} 6... Bxf3 {[%clk 0:03:01]}
7. Nxf3 {[%clk 0:02:51.5]} 7... c6 {[%clk 0:03:01.8]} 8. c3 {[%clk 0:02:47.3]}
8... Ngf6 {[%clk 0:03:01.3]} 9. Qc2 {[%clk 0:02:45.5]} 9... O-O {[%clk 0:03:00]}
10. Bd3 {[%clk 0:02:43]} 10... Nh5 {[%clk 0:02:57.2]} 11. Be3 {[%clk 0:02:40.6]}
11... e5 {[%clk 0:02:56.2]} 12. d5 {[%clk 0:02:36.8]} 12... c5 {[%clk
0:02:55.8]} 13. c4 {[%clk 0:02:36.8]} 13... a6 {[%clk 0:02:53.8]} 14. a4 {[%clk
0:02:30.3]} 14... f5 {[%clk 0:02:52.5]} 15. O-O {[%clk 0:02:26]} 15... f4 {[%clk
0:02:52.2]} 16. Bd2 {[%clk 0:02:24.8]} 16... Nhf6 {[%clk 0:02:51.7]} 17. Nh2
{[%clk 0:02:16.3]} 17... g5 {[%clk 0:02:51.7]} 18. f3 {[%clk 0:02:16.5]} 18...
h5 {[%clk 0:02:50.2]} 19. Be2 {[%clk 0:02:06.4]} 19... Nh7 {[%clk 0:02:42.8]}
20. b4 {[%clk 0:01:57.7]} 20... b6 {[%clk 0:02:43]} 21. b5 {[%clk 0:01:58]}
21... a5 {[%clk 0:02:42.6]} 22. Be1 {[%clk 0:01:45.6]} 22... Ndf6 {[%clk
0:02:41.7]} 23. h4 {[%clk 0:01:42.7]} 23... g4 {[%clk 0:02:40.4]} 24. fxg4
{[%clk 0:01:38.2]} 24... hxg4 {[%clk 0:02:40.8]} 25. Bxg4 {[%clk 0:01:36.5]}
25... Nxg4 {[%clk 0:02:40.5]} 26. Nxg4 {[%clk 0:01:37.5]} 26... Nf6 {[%clk
0:02:38.5]} 27. Qe2 {[%clk 0:01:33.9]} 27... Nxg4 {[%clk 0:02:35.2]} 28. Qxg4
{[%clk 0:01:35.6]} 28... Kh7 {[%clk 0:02:33.1]} 29. h5 {[%clk 0:01:31.9]} 29...
Rg8 {[%clk 0:02:29]} 30. Qg6+ {[%clk 0:01:31.4]} 30... Kh8 {[%clk 0:02:28.4]}
31. h6 {[%clk 0:01:31.9]} 31... Bf6 {[%clk 0:02:26.8]} 32. Qf5 {[%clk
0:01:22.2]} 32... Rg5 {[%clk 0:02:23.5]} 33. Qe6 {[%clk 0:01:17.5]} 33... Qe7
{[%clk 0:02:20.5]} 34. Qxe7 {[%clk 0:01:13.2]} 34... Bxe7 {[%clk 0:02:19.2]} 35.
Bh4 {[%clk 0:01:13.7]} 35... Rag8 {[%clk 0:02:15.2]} 36. Bxg5 {[%clk 0:01:13.9]}
36... Rxg5 {[%clk 0:02:14.6]} 37. Rf3 {[%clk 0:01:14.5]} 37... Kh7 {[%clk
0:02:12.4]} 38. Rh3 {[%clk 0:01:13.7]} 38... Bf8 {[%clk 0:02:11.1]} 39. Kf2
{[%clk 0:01:14.6]} 39... Bxh6 {[%clk 0:02:11]} 40. Rah1 {[%clk 0:01:15]} 40...
Rg6 {[%clk 0:02:11.9]} 41. Kf3 {[%clk 0:01:15.7]} 41... Kg7 {[%clk 0:02:11.7]}
42. g3 {[%clk 0:01:10]} 42... fxg3 {[%clk 0:02:02.8]} 43. Rxg3 {[%clk
0:01:10.7]} 43... Rxg3+ {[%clk 0:02:02.7]} 44. Kxg3 {[%clk 0:01:12.1]} 44... Kg6
{[%clk 0:01:57.2]} 45. Kg4 {[%clk 0:01:12.4]} 45... Bg7 {[%clk 0:01:49.6]} 46.
Rh5 {[%clk 0:01:10.5]} 46... Bf6 {[%clk 0:01:45.8]} 47. Rf5 {[%clk 0:01:03.9]}
47... Kg7 {[%clk 0:01:42.2]} 48. Kh5 {[%clk 0:01:03.7]} 48... Kf7 {[%clk
0:01:39]} 49. Kh6 {[%clk 0:00:59.5]} 49... Ke7 {[%clk 0:01:37.4]} 50. Kg6 {[%clk
0:00:59.7]} 50... Bh4 {[%clk 0:01:34.2]} 51. Rf7+ {[%clk 0:00:58]} 51... Ke8
{[%clk 0:01:33.1]} 52. Rb7 {[%clk 0:00:58]} 52... Bd8 {[%clk 0:01:32.8]} 53. Rb8
{[%clk 0:00:58.6]} 53... Kd7 {[%clk 0:01:31]} 54. Kf7 {[%clk 0:00:57.8]} 54...
Kc7 {[%clk 0:01:29.2]} 55. Ra8 {[%clk 0:00:57.9]} 55... Bh4 {[%clk 0:01:27.8]}
56. Ke8 {[%clk 0:00:55.2]} 56... Kb7 {[%clk 0:01:25.3]} 57. Ra6 {[%clk
0:00:55.2]} 57... Bg5 {[%clk 0:01:21.9]} 58. Kd7 {[%clk 0:00:55.2]} 58... Be3
{[%clk 0:01:14.7]} 59. Kxd6 {[%clk 0:00:55.4]} 59... Bd4 {[%clk 0:01:14.5]} 60.
Ke6 {[%clk 0:00:55.9]} 60... Bc3 {[%clk 0:00:55.7]} 61. d6 {[%clk 0:00:56.3]}
61... Bd2 {[%clk 0:00:51.2]} 62. d7 {[%clk 0:00:56.7]} 62... Bg5 {[%clk
0:00:47]} 63. Kf7 {[%clk 0:00:57.4]} 63... Bd8 {[%clk 0:00:46]} 64. Ke8 {[%clk
0:00:57.5]} 64... Bc7 {[%clk 0:00:45.5]} 65. d8=Q {[%clk 0:00:56.6]} 65... Bxd8
{[%clk 0:00:45.6]} 66. Kxd8 {[%clk 0:00:57.9]} 66... Kb8 {[%clk 0:00:45.2]} 67.
Kd7 {[%clk 0:00:58.3]} 67... Kb7 {[%clk 0:00:43.9]} 68. Kd6 {[%clk 0:00:58.7]}
68... Kb8 {[%clk 0:00:38.8]} 69. Kxe5 {[%clk 0:00:57.9]} 69... Kb7 {[%clk
0:00:38.9]} 70. Kd6 {[%clk 0:00:56.9]} 1

[Event "Open Nuevo Centro. Jornada 1"]
[Site "Chess.com"]
[Date "2020.06.19"]
[Round "5"]
[White "Camison Zornoza, Cesar"]
[Black "Roca Cruz, Rafael"]
[Result "0-1"]
[WhiteElo "1376"]
[BlackElo "1669"]
[TimeControl "180+2"]
[EndTime "11:30:21 PDT"]
[Termination "Victoria de RafaRocaCruz por tiempo"]

1. e4 {[%clk 0:03:01.9]} 1... c5 {[%clk 0:03:00.7]} 2. d4 {[%clk 0:03:02]} 2...
cxd4 {[%clk 0:03:01.1]} 3. c3 {[%clk 0:03:03.1]} 3... d5 {[%clk 0:03:01.8]} 4.
exd5 {[%clk 0:03:03.3]} 4... Qxd5 {[%clk 0:03:02.5]} 5. cxd4 {[%clk 0:03:04.2]}
5... Nf6 {[%clk 0:03:03.4]} 6. Nc3 {[%clk 0:03:04.5]} 6... Qd8 {[%clk
0:03:04.2]} 7. Nf3 {[%clk 0:03:05.2]} 7... e6 {[%clk 0:03:05.3]} 8. Bd3 {[%clk
0:03:05.2]} 8... Be7 {[%clk 0:03:06.3]} 9. O-O {[%clk 0:03:05.5]} 9... O-O
{[%clk 0:03:07.5]} 10. h3 {[%clk 0:03:03.1]} 10... Nc6 {[%clk 0:03:08.1]} 11.
Be3 {[%clk 0:03:04.1]} 11... Nb4 {[%clk 0:03:09.1]} 12. Be2 {[%clk 0:03:02]}
12... Nbd5 {[%clk 0:03:09.8]} 13. Nxd5 {[%clk 0:03:02.1]} 13... Nxd5 {[%clk
0:03:10.7]} 14. Ne5 {[%clk 0:02:36.8]} 14... Bd7 {[%clk 0:02:40.6]} 15. Bd3
{[%clk 0:02:31.4]} 15... Rc8 {[%clk 0:02:32.9]} 16. a3 {[%clk 0:02:10.3]} 16...
Bc6 {[%clk 0:02:08]} 17. Nxc6 {[%clk 0:01:54.8]} 17... Rxc6 {[%clk 0:02:07.5]}
18. Rc1 {[%clk 0:01:54.9]} 18... Qd7 {[%clk 0:01:50.7]} 19. Bb1 {[%clk
0:01:51.5]} 19... Rxc1 {[%clk 0:01:35.2]} 20. Bxc1 {[%clk 0:01:51.6]} 20... Rc8
{[%clk 0:01:26.8]} 21. Qd3 {[%clk 0:01:51.3]} 21... g6 {[%clk 0:00:53.2]} 22.
Bh6 {[%clk 0:01:50]} 22... Bf6 {[%clk 0:00:42.6]} 23. Be3 {[%clk 0:01:43.9]}
23... Bg7 {[%clk 0:00:38.1]} 24. Qe2 {[%clk 0:01:42.7]} 24... Nf6 {[%clk
0:00:25.9]} 25. Qf3 {[%clk 0:01:41.6]} 25... Qd5 {[%clk 0:00:25.5]} 26. Qg3
{[%clk 0:01:23.8]} 26... Ne4 {[%clk 0:00:17.7]} 27. Bxe4 {[%clk 0:01:23.2]}
27... Qxe4 {[%clk 0:00:18.7]} 28. Qd6 {[%clk 0:01:15.8]} 28... Qc6 {[%clk
0:00:19.3]} 29. Qb4 {[%clk 0:01:12.6]} 29... b6 {[%clk 0:00:18.6]} 30. a4 {[%clk
0:01:09]} 30... Qc4 {[%clk 0:00:16.5]} 31. Qd2 {[%clk 0:00:50.7]} 31... Qc2
{[%clk 0:00:15.4]} 32. Qxc2 {[%clk 0:00:49.6]} 32... Rxc2 {[%clk 0:00:16.1]} 33.
Rb1 {[%clk 0:00:49.8]} 33... h5 {[%clk 0:00:14.4]} 34. b4 {[%clk 0:00:50]} 34...
Rc4 {[%clk 0:00:15.2]} 35. a5 {[%clk 0:00:47.2]} 35... Bxd4 {[%clk 0:00:15.8]}
36. Bxd4 {[%clk 0:00:45.9]} 36... Rxd4 {[%clk 0:00:16.9]} 37. axb6 {[%clk
0:00:47.2]} 37... axb6 {[%clk 0:00:18.1]} 38. Kf1 {[%clk 0:00:48.1]} 38... Kf8
{[%clk 0:00:18.4]} 39. Ke2 {[%clk 0:00:49.3]} 39... Ke7 {[%clk 0:00:19.4]} 40.
Ke3 {[%clk 0:00:50]} 40... e5 {[%clk 0:00:20.7]} 41. f4 {[%clk 0:00:47.1]} 41...
f6 {[%clk 0:00:21.3]} 42. fxe5 {[%clk 0:00:47.8]} 42... fxe5 {[%clk 0:00:21.5]}
43. b5 {[%clk 0:00:46.2]} 43... Ke6 {[%clk 0:00:19.8]} 44. Rc1 {[%clk
0:00:45.9]} 44... Rd6 {[%clk 0:00:18.6]} 45. Rc8 {[%clk 0:00:43.6]} 45... Kd5
{[%clk 0:00:16.9]} 46. g4 {[%clk 0:00:38.8]} 46... hxg4 {[%clk 0:00:17]} 47.
hxg4 {[%clk 0:00:39.5]} 47... Rf6 {[%clk 0:00:15.2]} 48. Rd8+ {[%clk 0:00:31.8]}
48... Kc5 {[%clk 0:00:15.3]} 49. Re8 {[%clk 0:00:32.6]} 49... Kd5 {[%clk
0:00:14.7]} 50. Rd8+ {[%clk 0:00:30.3]} 50... Rd6 {[%clk 0:00:13.1]} 51. Re8
{[%clk 0:00:27.7]} 51... Re6 {[%clk 0:00:10.2]} 52. Rc8 {[%clk 0:00:26.8]} 52...
Re7 {[%clk 0:00:08]} 53. Rc6 {[%clk 0:00:25.5]} 53... Re6 {[%clk 0:00:08.9]} 54.
Rc8 {[%clk 0:00:24.1]} 54... Rd6 {[%clk 0:00:07.7]} 55. g5 {[%clk 0:00:22.2]}
55... Re6 {[%clk 0:00:06.6]} 56. Rf8 {[%clk 0:00:22.5]} 56... Kc5 {[%clk
0:00:06.6]} 57. Ke4 {[%clk 0:00:09.3]} 57... Kxb5 {[%clk 0:00:05.3]} 58. Rf6
{[%clk 0:00:10.2]} 58... Rc6 {[%clk 0:00:05.4]} 59. Rxg6 {[%clk 0:00:10.9]}
59... Rxg6 {[%clk 0:00:06]} 60. Kf5 {[%clk 0:00:10.3]} 60... Rg8 {[%clk
0:00:06.1]} 61. g6 {[%clk 0:00:10.1]} 61... Rxg6 {[%clk 0:00:07.2]} 62. Kxg6
{[%clk 0:00:10.9]} 62... e4 {[%clk 0:00:08.4]} 63. Kf5 {[%clk 0:00:12.1]} 63...
e3 {[%clk 0:00:09.7]} 64. Kf4 {[%clk 0:00:13.3]} 64... e2 {[%clk 0:00:11]} 65.
Kf3 {[%clk 0:00:14.4]} 65... e1=Q {[%clk 0:00:11.4]} 0